bitfinex/quotes_BTCUSD_20250526
["timestamp","ask_amount","ask_price","bid_price","bid_amount"]
[1748245915916,0.83374502,109940.0,109930.0,1.83698222]
[1748245919563,0.88495232,109940.0,109930.0,1.83698222]
[1748245920153,0.88495232,109940.0,109930.0,1.509453]
[1748245920354,0.88495232,109940.0,109930.0,1.48206543]
[1748245920805,0.41092996,109940.0,109930.0,1.48206543]
[1748245920945,0.71508996,109940.0,109930.0,1.54576543]
[1748245921161,0.68609086,109940.0,109930.0,1.54576543]
[1748245921359,0.390443,109940.0,109930.0,1.54576543]
[1748245921559,0.390443,109940.0,109930.0,1.75498846]
[1748245921560,0.29269946,109940.0,109930.0,1.75498846]
[1748245921762,0.29269946,109940.0,109930.0,1.90042846]
[1748245921763,0.13397938,109940.0,109930.0,1.90042846]
[1748245921971,0.0573514,109940.0,109930.0,1.90042846]
[1748245922180,0.09185816,109940.0,109930.0,1.90042846]
[1748245922379,0.10095394,109940.0,109930.0,1.90042846]
[1748245922988,0.10095328,109940.0,109930.0,1.90042846]
[1748245923368,0.09185758,109940.0,109930.0,1.90242846]
[1748245923580,0.06744652,109940.0,109930.0,1.90442846]
[1748245923796,0.07654222,109940.0,109930.0,1.90442846]
[1748245923993,0.08137659,109940.0,109930.0,1.90442846]
[1748245924202,0.07228147,109940.0,109930.0,1.90442846]
[1748245924837,0.08137667,109940.0,109930.0,1.90442846]
[1748245925057,0.09047204,109940.0,109930.0,1.90442846]
[1748245925482,0.08137667,109940.0,109930.0,1.90442846]
[1748245926038,0.03817168,109960.0,109950.0,0.20918499]
[1748245926271,0.03817151,109960.0,109950.0,5.63237699]
[1748245926484,0.02728172,109960.0,109950.0,5.63237715]
[1748245927086,0.01818809,109960.0,109950.0,5.63237715]
[1748245927322,0.01918793,109960.0,109950.0,5.64147161]
[1748245927538,0.01009363,109960.0,109950.0,5.64347161]
[1748245927764,0.01918743,109960.0,109950.0,5.64347161]
[1748245928246,0.02828139,109960.0,109950.0,5.64347161]
[1748245928459,0.03737544,109960.0,109950.0,5.64347161]
[1748245929322,0.03637544,109960.0,109950.0,5.64347161]
[1748245929537,0.01109281,109970.0,109960.0,0.61136596]
[1748245929750,0.03837206,109970.0,109960.0,5.48605796]
[1748245930302,0.03837189,109970.0,109960.0,5.48605796]
[1748245930728,0.03937189,109970.0,109960.0,5.48605796]
[1748245930968,0.0211857,109970.0,109960.0,5.48605796]
[1748245931210,0.04946519,109970.0,109960.0,5.48605796]
[1748245931566,0.04946576,109970.0,109960.0,5.48605796]
[1748245931775,0.04037287,109970.0,109960.0,5.48605813]
[1748245932186,0.04037287,109970.0,109960.0,5.49515184]
[1748245932752,0.0312799,109970.0,109960.0,5.4769645]
[1748245933404,0.0312799,109970.0,109960.0,5.46787045]
[1748245933405,0.21314768,109970.0,109960.0,5.46787045]
[1748245933643,0.19496116,109970.0,109960.0,5.276892]
[1748245933865,0.18586778,109970.0,109960.0,5.276892]
[1748245934048,0.18586778,109970.0,109960.0,5.28598621]
[1748245935322,0.16977107,109990.0,109980.0,0.60453594]
[1748245935543,0.18795362,109990.0,109980.0,5.96120914]
[1748245935756,0.19704527,109990.0,109980.0,5.95211716]
[1748245936019,0.002,109990.0,109980.0,5.73322564]
[1748245936227,0.01109107,109990.0,109980.0,5.76958362]
[1748245936463,0.0201823,109990.0,109980.0,5.76958362]
[1748245936678,0.0206801,109990.0,109980.0,5.82515362]
[1748245937097,0.0206801,109990.0,109980.0,5.82415362]
[1748245937314,0.03986299,109990.0,109980.0,5.83015362]
[1748245937522,0.21260713,109990.0,109980.0,5.65785411]
[1748245937762,0.21260713,109990.0,109980.0,5.66694625]
[1748245939249,0.20760713,109990.0,109980.0,5.66694625]
[1748245940044,0.20760713,109990.0,109980.0,5.67603831]
[1748245940909,0.21604308,109990.0,109980.0,5.67603831]
[1748245941120,0.21604308,109990.0,109980.0,5.65785411]
[1748245941305,0.19936239,109990.0,109980.0,5.397712]
[1748245941547,0.02661817,109990.0,109980.0,5.59136548]
[1748245941767,0.03570957,109990.0,109980.0,5.76395048]
[1748245941989,0.04480114,109990.0,109980.0,5.76395048]
[1748245942198,0.03570957,109990.0,109980.0,5.76395048]
[1748245942753,0.02661817,109990.0,109980.0,5.76395048]
[1748245942965,0.03570957,109990.0,109980.0,5.76395048]
[1748245943812,0.04480114,109990.0,109980.0,5.76395048]
[1748245944012,0.05389287,109990.0,109980.0,5.42395048]
[1748245944211,0.23572758,109990.0,109980.0,5.25044627]
[1748245944422,0.21754536,109990.0,109980.0,5.40485866]
[1748245944624,0.20845396,109990.0,109980.0,5.09406956]
[1748245944825,0.20845396,109990.0,109980.0,5.10316203]
[1748245945620,0.20845396,109990.0,109980.0,5.26372885]
[1748245945815,0.20845396,109990.0,109980.0,5.27282124]
[1748245946071,0.20845396,109990.0,109980.0,5.61282124]
[1748245946247,0.20845396,109990.0,109980.0,5.62191355]
[1748245946481,0.20845396,109990.0,109980.0,5.63100578]
[1748245947526,0.20845396,109990.0,109980.0,5.62191355]
[1748245947933,0.19936239,109990.0,109980.0,5.247957]
[1748245948146,0.19936239,109990.0,109980.0,5.366012]
[1748245948607,0.19936239,109990.0,109980.0,5.220692]
[1748245949273,0.26136239,109990.0,109980.0,5.366012]
[1748245949593,0.23036239,109990.0,109980.0,5.366012]
[1748245950561,0.26136239,109990.0,109980.0,5.777312]
[1748245952327,0.00843595,109990.0,109980.0,6.71296324]
[1748245952555,0.05389295,109990.0,109980.0,6.74024017]
[1748245952760,0.21754544,109990.0,109980.0,6.6561558]
[1748245952972,0.21754544,109990.0,109980.0,6.66524819]
[1748245954588,0.21754544,109990.0,109980.0,6.6743405]
[1748245954797,0.21754544,109990.0,109980.0,6.66524819]
[1748245955248,0.21754544,109990.0,109980.0,6.51992819]
[1748245955607,0.21754544,109990.0,109980.0,6.67434042]
[1748245956057,0.21754544,109990.0,109980.0,6.66524819]
[1748245956462,0.21754544,109990.0,109980.0,6.67434042]
[1748245957161,0.20845404,109990.0,109980.0,6.5108358]
[1748245957382,0.00843595,109990.0,109980.0,6.15967804]
[1748245957798,0.0389404,109990.0,109980.0,6.18694204]
[1748245958351,0.0389404,109990.0,109980.0,6.15957404]
[1748245961439,0.0175271,109990.0,109980.0,6.01425404]
[1748245961647,0.00843595,109990.0,109980.0,6.09951004]
[1748245962098,0.01752694,109990.0,109980.0,5.92239004]
[1748245962320,0.03570965,109990.0,109980.0,5.96816448]
[1748245962466,0.02661817,109990.0,109980.0,5.96816448]
[1748245962674,0.04480097,109990.0,109980.0,6.00036448]
[1748245963274,0.04480097,109990.0,109980.0,5.58906448]
[1748245963713,0.03570949,109990.0,109980.0,5.58906448]
[1748245963937,0.04480097,109990.0,109980.0,5.58906448]
[1748245964358,0.05389254,109990.0,109980.0,5.58906448]
[1748245965904,0.05389254,109990.0,109980.0,5.55686448]
[1748245966750,0.04480097,109990.0,109980.0,6.65606448]
[1748245967222,0.07536777,109990.0,109980.0,6.65606448]
[1748245967533,0.07536777,109990.0,109980.0,6.51074448]
[1748245967777,0.07536777,109990.0,109980.0,6.65606448]
[1748245967984,0.07536777,109990.0,109980.0,6.63477968]
[1748245968794,0.08445942,109990.0,109980.0,6.63477968]
[1748245968999,0.07536777,109990.0,109980.0,6.63477968]
[1748245969212,0.08445934,109990.0,109980.0,6.63477968]
[1748245971696,0.07536777,109990.0,109980.0,6.63477968]
[1748245971942,0.08445934,109990.0,109980.0,6.63477968]
[1748245972154,0.25720356,109990.0,109980.0,6.63477984]
[1748245972346,0.31940356,109990.0,109980.0,6.6256877]
[1748245972738,0.31940356,109990.0,109980.0,6.47127547]
[1748245972964,0.31031224,109990.0,109980.0,6.62568786]
[1748245973376,0.30122076,109990.0,109980.0,6.62568786]
[1748245974018,0.30122076,109990.0,109980.0,6.63478017]
[1748245974231,0.31211121,109990.0,109980.0,6.63478017]
[1748245974658,0.31211121,109990.0,109980.0,6.6438724]
[1748245975135,0.31211121,109990.0,109980.0,6.6438719]
[1748245976985,0.31211121,109990.0,109980.0,6.45309044]
[1748245977202,0.31211121,109990.0,109980.0,6.6165953]
[1748245977591,0.31211121,109990.0,109980.0,6.62568761]
[1748245977984,0.31211121,109990.0,109980.0,5.93778761]
[1748245978507,0.30488312,109990.0,109980.0,5.93778761]
[1748245979067,0.30488312,109990.0,109980.0,5.9286953]
[1748245979484,0.29579155,109990.0,109980.0,5.91960291]
[1748245981258,0.29579155,109990.0,109980.0,5.7286592]
[1748245981467,0.29579155,109990.0,109980.0,5.73775176]
[1748245981856,0.28669982,109990.0,109980.0,5.73775176]
[1748245982241,0.28669982,109990.0,109980.0,5.7286592]
[1748245982740,0.28669982,109990.0,109980.0,5.5833392]
[1748245983092,0.32845698,109990.0,109980.0,5.73775176]
[1748245983720,0.32845698,109990.0,109980.0,6.42565176]
[1748245987509,0.32845698,109990.0,109980.0,6.48021176]
[1748245988053,0.32845698,109990.0,109980.0,6.42565176]
[1748245988893,0.32845698,109990.0,109980.0,6.28033176]
[1748245989081,0.32845698,109990.0,109980.0,6.42565176]
[1748245989227,0.32845698,109990.0,109980.0,6.40436492]
[1748245989833,0.32845698,109990.0,109980.0,6.39527236]
[1748245990104,0.48649698,109990.0,109980.0,6.39527236]
[1748245994809,0.48649698,109990.0,109980.0,6.58621607]
[1748245995338,0.48649698,109990.0,109980.0,6.5771236]
[1748245995945,0.32845698,109990.0,109980.0,6.39527236]
[1748245996150,0.48649698,109990.0,109980.0,6.39527236]
[1748245998917,0.48649698,109990.0,109980.0,6.24995236]
[1748245999114,0.48649698,109990.0,109980.0,6.39527236]
[1748245999290,0.51199113,109990.0,109980.0,6.39527236]
[1748246000685,0.52651174,109990.0,109980.0,6.39527236]
[1748246004887,0.56751479,109990.0,109980.0,6.39527236]
[1748246005419,0.56751479,109990.0,109980.0,6.36790323]
[1748246006235,0.55299418,109990.0,109980.0,6.36790323]
[1748246006781,0.39495418,109990.0,109980.0,5.87094686]
[1748246006963,0.46498003,109990.0,109980.0,5.87094686]
[1748246007547,0.42397698,109990.0,109980.0,5.88003917]
[1748246007742,0.42397698,109990.0,109980.0,5.87094686]
[1748246010418,0.42397698,109990.0,109980.0,6.55884686]
[1748246011000,0.42397698,109990.0,109980.0,6.53756068]
[1748246012170,0.38221982,109990.0,109980.0,6.53756068]
[1748246012630,0.22449982,109990.0,109980.0,6.53756068]
[1748246012837,0.22449982,109990.0,109980.0,6.54665299]
[1748246013037,0.05175668,109990.0,109980.0,6.5648372]
[1748246013244,0.06993965,109990.0,109980.0,6.5960372]
[1748246014249,0.07903138,109990.0,109980.0,6.5960372]
[1748246014657,0.08442227,109990.0,109980.0,6.72818276]
[1748246014868,0.11169581,109990.0,109980.0,6.72818276]
[1748246015564,0.10989684,109990.0,109980.0,6.47340971]
[1748246016934,0.10989684,109990.0,109980.0,6.44080971]
[1748246017071,0.11898841,109990.0,109980.0,6.44080971]
[1748246017436,0.11898841,109990.0,109980.0,6.78080971]
[1748246018145,0.11898841,109990.0,109980.0,6.63548971]
[1748246018355,0.07723125,109990.0,109980.0,6.78080971]
[1748246020378,0.07723191,109990.0,109980.0,6.78080971]
[1748246020577,0.07723191,109990.0,109980.0,6.78048546]
[1748246021673,0.24997547,109990.0,109980.0,6.74019348]
[1748246021897,0.29519259,109990.0,109980.0,6.28619975]
[1748246022123,0.29519259,109990.0,109980.0,6.43151975]
[1748246025440,0.32066865,109990.0,109980.0,6.43151975]
[1748246025931,0.3315591,109990.0,109980.0,6.43151975]
[1748246027468,0.37256215,109990.0,109980.0,6.43151975]
[1748246027969,0.37256215,109990.0,109980.0,6.44061231]
[1748246029341,0.37256215,109990.0,109980.0,6.43151975]
[1748246030879,0.37256215,109990.0,109980.0,6.28619975]
[1748246031134,0.37256215,109990.0,109980.0,5.59829975]
[1748246031836,0.37619231,109990.0,109980.0,5.577013]
[1748246032674,0.35071625,109990.0,109980.0,5.38394003]
[1748246033179,0.33619564,109990.0,109980.0,5.38394003]
[1748246033887,0.38740294,109990.0,109980.0,5.38394003]
[1748246034036,0.38740294,109990.0,109980.0,5.35656996]
[1748246034251,0.39827329,109990.0,109980.0,5.35656996]
[1748246036104,0.30606294,109990.0,109980.0,5.35656996]
[1748246036856,0.30606294,109990.0,109980.0,5.76786996]
[1748246039149,0.3956085,109990.0,109980.0,5.76786996]
[1748246039376,0.48332647,109990.0,109980.0,5.75649696]
[1748246039591,0.50879309,109990.0,109980.0,5.75649696]
[1748246040252,0.51244335,109990.0,109980.0,5.75649696]
[1748246041095,0.8269842,109990.0,109980.0,5.75649696]
[1748246042378,0.8279842,109990.0,109980.0,5.75649696]
[1748246043366,0.81446359,109990.0,109980.0,5.75649696]
[1748246043575,0.85619902,109990.0,109980.0,5.75649696]
[1748246044832,0.85619902,109990.0,109980.0,5.75059346]
[1748246045461,0.91380105,109990.0,109980.0,5.75059346]
[1748246047315,0.97413533,109990.0,109980.0,5.75059346]
[1748246050067,0.97413533,109990.0,109980.0,5.51659746]
[1748246050960,0.97413533,109990.0,109980.0,4.41967046]
[1748246051184,0.96440974,109990.0,109980.0,4.31794546]
[1748246051408,1.05393125,109990.0,109980.0,4.31794546]
[1748246051845,1.05393125,109990.0,109980.0,4.28171594]
[1748246054263,1.06365684,109990.0,109980.0,4.28171594]
[1748246054460,1.42691791,109990.0,109980.0,3.87041594]
[1748246054634,1.06365684,109990.0,109980.0,3.87041594]
[1748246054848,1.06365684,109990.0,109980.0,3.84912383]
[1748246055516,0.97413533,109990.0,109980.0,3.84912383]
[1748246057359,0.57206562,109990.0,109980.0,3.84912383]
[1748246057490,1.17206562,109990.0,109980.0,3.84912383]
[1748246059119,1.32954562,109990.0,109980.0,3.84912383]
[1748246060097,1.69288581,109990.0,109980.0,3.84912383]
[1748246060292,1.69288581,109990.0,109980.0,4.26042383]
[1748246060794,1.78240732,109990.0,109980.0,4.26042383]
[1748246060994,1.41906713,109990.0,109980.0,4.26042383]
[1748246061646,1.46069703,109990.0,109980.0,4.26042383]
[1748246062370,1.82403722,109990.0,109980.0,4.26042383]
[1748246064905,1.78240732,109990.0,109980.0,4.26042383]
[1748246065110,1.78240732,109990.0,109980.0,4.132992]
[1748246065541,1.78240732,109990.0,109980.0,4.12708817]
[1748246065937,1.78240732,109990.0,109980.0,4.11823242]
[1748246067346,1.69288581,109990.0,109980.0,4.11823242]
[1748246067559,1.74415596,109990.0,109980.0,4.11823242]
[1748246068431,1.74415596,109990.0,109980.0,4.09085714]
[1748246068646,1.74387596,109990.0,109980.0,4.09085714]
[1748246069983,1.74387596,109990.0,109980.0,3.96987014]
[1748246070189,1.83339747,109990.0,109980.0,3.96987014]
[1748246070511,1.78212732,109990.0,109980.0,3.96987014]
[1748246075041,1.78212732,109990.0,109980.0,3.94857827]
[1748246079081,1.78212732,109990.0,109980.0,3.93972252]
[1748246079994,1.78212732,109990.0,109980.0,3.64819752]
[1748246081137,1.83339747,109990.0,109980.0,3.64819752]
[1748246082407,1.83339747,109990.0,109980.0,3.51943152]
[1748246082614,1.83339747,109990.0,109980.0,3.49631352]
[1748246082826,1.83339747,109990.0,109980.0,3.554784]
[1748246083460,1.87440052,109990.0,109980.0,3.554784]
[1748246083850,1.87440052,109990.0,109980.0,3.52740821]
[1748246084062,1.87440052,109990.0,109980.0,3.143484]
[1748246084216,1.87440052,109990.0,109980.0,3.124096]
[1748246085815,1.88419703,109990.0,109980.0,3.124096]
[1748246089471,1.88419703,109990.0,109980.0,3.11523981]
[1748246093530,1.88419703,109990.0,109980.0,2.90479181]
[1748246094503,1.91319613,109990.0,109980.0,2.90479181]
[1748246095173,1.91319613,109990.0,109980.0,2.88349888]
[1748246095492,1.88419703,109990.0,109980.0,2.88349888]
[1748246096821,1.88419703,109990.0,109980.0,2.87115888]
[1748246097027,1.9124336,109990.0,109980.0,2.47279588]
[1748246098736,1.82313037,109990.0,109980.0,2.47279588]
[1748246099356,1.82313037,109990.0,109980.0,2.44541926]
[1748246101163,1.82313037,109990.0,109980.0,2.43656291]
[1748246102038,1.88418564,109990.0,109980.0,2.43656291]
[1748246102238,1.88297778,109990.0,109980.0,2.43656291]
[1748246103827,1.88297778,109990.0,109980.0,2.10693491]
[1748246103995,1.88297778,109990.0,109980.0,1.91925891]
[1748246104463,1.88297778,109990.0,109980.0,0.78211991]
[1748246104630,1.88297778,109990.0,109980.0,0.64267891]
[1748246105268,1.91197688,109990.0,109980.0,0.64267891]
[1748246106701,1.54863669,109990.0,109980.0,0.64267891]
[1748246106857,1.24611669,109990.0,109980.0,0.64267891]
[1748246107094,1.39543518,109990.0,109980.0,0.64267891]
[1748246107595,1.42653518,109990.0,109980.0,0.64267891]
[1748246107805,1.45983518,109990.0,109980.0,0.64267891]
[1748246107999,1.46833846,109990.0,109980.0,0.64267891]
[1748246108200,1.43933936,109990.0,109980.0,0.64267891]
[1748246108406,1.89220106,109990.0,109980.0,0.64267891]
[1748246108786,1.88369778,109990.0,109980.0,0.64267891]
[1748246109442,2.00200011,109990.0,109980.0,0.64267891]
[1748246110802,1.40200011,109990.0,109980.0,0.64267891]
[1748246111050,1.40700011,109990.0,109980.0,0.64267891]
[1748246112058,1.40200011,109990.0,109980.0,0.64267891]
[1748246112263,1.37300101,109990.0,109980.0,0.64267891]
[1748246113117,1.31194574,109990.0,109980.0,0.64267891]
[1748246113619,1.31194574,109990.0,109980.0,0.60921693]
[1748246115204,1.3409593,109990.0,109980.0,0.53369393]
[1748246115400,1.3409593,109990.0,109980.0,0.36160393]
[1748246115791,1.3389593,109990.0,109980.0,0.36160393]
[1748246116231,1.3439593,109990.0,109980.0,0.36160393]
[1748246116826,1.3439593,109990.0,109980.0,0.33422477]
[1748246117841,1.3439593,109990.0,109980.0,0.10961336]
[1748246118727,1.67828593,109990.0,109980.0,0.10961336]
[1748246119532,1.67828593,109990.0,109980.0,0.08831836]
[1748246119740,0.20005397,109970.0,109960.0,0.38592421]
[1748246119929,0.91328785,109970.0,109960.0,5.74279421]
[1748246120797,0.82376634,109970.0,109960.0,5.74279421]
[1748246121005,0.82376634,109970.0,109960.0,5.74379421]
[1748246121296,0.83827431,109970.0,109960.0,5.74379421]
[1748246121932,0.99515431,109970.0,109960.0,5.74379421]
[1748246122308,0.99515431,109970.0,109960.0,5.74479421]
[1748246122504,0.99515431,109970.0,109960.0,5.54356721]
[1748246122718,1.08467582,109970.0,109960.0,5.54356721]
[1748246124867,0.72133563,109970.0,109960.0,5.54356721]
[1748246125806,0.79366553,109970.0,109960.0,5.54356721]
[1748246126015,1.15700572,109970.0,109960.0,5.54356721]
[1748246127802,1.17154657,109970.0,109960.0,5.54356721]
[1748246127998,1.83574657,109970.0,109960.0,1.01712721]
[1748246128199,1.83574657,109970.0,109960.0,0.973203]
[1748246128499,1.54074657,109970.0,109960.0,0.454558]
[1748246128694,1.54074657,109970.0,109960.0,0.453558]
[1748246128911,1.564963,109970.0,109960.0,0.42084971]
[1748246129312,1.566963,109970.0,109960.0,0.42084971]
[1748246129517,1.565963,109970.0,109960.0,0.42084971]
[1748246129718,1.93230319,109970.0,109960.0,0.42084971]
[1748246129974,1.568963,109970.0,109960.0,0.42084971]
[1748246130596,1.20562281,109970.0,109960.0,0.42084971]
[1748246130911,1.93292687,109970.0,109960.0,0.42084971]
[1748246132360,1.92992687,109970.0,109960.0,0.42084971]
[1748246132599,2.02047005,109970.0,109960.0,0.42184971]
[1748246132774,2.02047005,109970.0,109960.0,0.31129171]
[1748246132979,2.02047005,109970.0,109960.0,0.27782222]
[1748246133198,2.02447005,109970.0,109960.0,0.27782222]
[1748246133837,2.07447005,109970.0,109960.0,0.27782222]
[1748246134490,1.01905651,109970.0,109960.0,0.27782222]
[1748246134788,1.30199491,109970.0,109960.0,1.91612022]
[1748246134994,1.30199491,109970.0,109960.0,0.44297122]
[1748246135243,1.30199491,109970.0,109960.0,0.166149]
[1748246135882,1.27298135,109970.0,109960.0,0.166149]
[1748246136131,1.31280145,109970.0,109960.0,0.166149]
[1748246136345,1.31280145,109970.0,109960.0,0.001]
[1748246136743,1.30349858,109970.0,109960.0,0.001]
[1748246137120,1.33251214,109970.0,109960.0,0.001]
[1748246138040,1.33250323,109970.0,109960.0,0.001]
[1748246138557,1.29268313,109970.0,109960.0,0.904387]
[1748246138761,1.29268313,109970.0,109960.0,0.727392]
[1748246139045,1.26366957,109970.0,109960.0,0.72629037]
[1748246139412,0.79097837,109960.0,109950.0,2.627114]
[1748246139619,0.90599055,109960.0,109950.0,2.627114]
[1748246140246,0.90599055,109960.0,109950.0,2.60581387]
[1748246140451,1.23311055,109960.0,109950.0,2.60581387]
[1748246140574,1.24182139,109960.0,109950.0,2.60581387]
[1748246141462,1.54382139,109960.0,109950.0,2.60581387]
[1748246141668,1.62567828,109960.0,109950.0,2.60581387]
[1748246141867,1.32367828,109960.0,109950.0,2.60581387]
[1748246142070,1.33921913,109960.0,109950.0,2.60581387]
[1748246142304,1.64321913,109960.0,109950.0,2.60581387]
[1748246143947,1.34121913,109960.0,109950.0,2.60581387]
[1748246144242,1.64321913,109960.0,109950.0,2.60581387]
[1748246147077,1.69387085,109960.0,109950.0,2.60581387]
[1748246148138,1.69387085,109960.0,109950.0,2.57234393]
[1748246149917,1.59192904,109960.0,109950.0,2.57234393]
[1748246150549,1.59192904,109960.0,109950.0,2.54495943]
[1748246151832,1.28992904,109960.0,109950.0,2.54495943]
[1748246152046,0.83198819,109960.0,109950.0,2.99198364]
[1748246152267,0.86237601,109960.0,109950.0,2.60805943]
[1748246152903,0.9655655,109960.0,109950.0,2.60805943]
[1748246154245,1.15849879,109960.0,109950.0,2.20495943]
[1748246154489,1.15849879,109960.0,109950.0,0.125612]
[1748246154490,1.60259838,109960.0,109950.0,0.125612]
[1748246155239,1.59173028,109960.0,109950.0,0.125612]
[1748246155741,1.49940889,109960.0,109950.0,0.125612]
[1748246156466,1.49940889,109960.0,109950.0,0.09289869]
[1748246156467,1.52842245,109960.0,109950.0,0.09289869]
[1748246156668,0.80553658,109950.0,109940.0,0.002]
[1748246156776,1.01006012,109950.0,109940.0,1.627832]
[1748246157893,1.01006012,109950.0,109940.0,1.6323298]
[1748246158130,1.35028173,109950.0,109940.0,1.2703378]
[1748246158314,0.98663861,109950.0,109940.0,0.6698498]
[1748246158920,0.98563861,109950.0,109940.0,0.6678498]
[1748246159125,1.06752375,109950.0,109940.0,0.6688498]
[1748246159298,1.06752375,109950.0,109940.0,0.6668498]
[1748246159512,1.03512375,109950.0,109940.0,0.6668498]
[1748246160175,1.06772375,109950.0,109940.0,0.6455479]
[1748246161028,1.14517741,109950.0,109940.0,0.6455479]
[1748246161820,1.06772375,109950.0,109940.0,0.6455479]
[1748246166008,1.21312375,109950.0,109940.0,0.6455479]
[1748246166391,1.2215268,109950.0,109940.0,0.6455479]
[1748246166631,1.2215268,109950.0,109940.0,0.61815959]
[1748246166841,1.1888268,109950.0,109940.0,0.61815959]
[1748246168380,1.3451868,109950.0,109940.0,0.61815959]
[1748246169967,1.1997868,109950.0,109940.0,0.61815959]
[1748246170158,1.3451868,109950.0,109940.0,0.61815959]
[1748246173046,1.77712992,109950.0,109940.0,0.61815959]
[1748246173249,1.77712992,109950.0,109940.0,0.3248498]
[1748246173676,1.78675034,109950.0,109940.0,0.3248498]
[1748246173886,1.42310722,109950.0,109940.0,0.3248498]
[1748246174101,1.42310722,109950.0,109940.0,0.29137558]
[1748246174969,1.32116541,109950.0,109940.0,0.29137558]
[1748246178594,1.01940541,109950.0,109940.0,0.29137558]
[1748246178810,1.25786541,109950.0,109940.0,0.29137558]
[1748246179214,1.28806541,109950.0,109940.0,0.29137558]
[1748246179429,1.31806541,109950.0,109940.0,0.63137558]
[1748246179975,1.40758692,109950.0,109940.0,0.63137558]
[1748246181419,1.40758692,109950.0,109940.0,0.6100738]
[1748246184774,1.40758692,109950.0,109940.0,0.5826858]
[1748246184941,1.43660048,109950.0,109940.0,0.5826858]
[1748246186517,1.34711897,109950.0,109940.0,0.5826858]
[1748246186950,1.53883187,109950.0,109940.0,0.5826858]
[1748246187152,1.53883187,109950.0,109940.0,0.54921161]
[1748246188350,1.50981831,109950.0,109940.0,0.54921161]
[1748246188576,1.17801831,109950.0,109940.0,0.54921161]
[1748246188794,0.82987746,109950.0,109940.0,0.61231161]
[1748246189007,0.74010637,109950.0,109940.0,0.61231161]
[1748246189220,0.82962788,109950.0,109940.0,0.58181161]
[1748246189428,0.82962788,109950.0,109940.0,0.54921161]
[1748246191430,0.72768607,109950.0,109940.0,0.54921161]
[1748246192464,0.77768607,109950.0,109940.0,0.54921161]
[1748246192665,0.77764607,109950.0,109940.0,0.54921161]
[1748246193066,0.77764607,109950.0,109940.0,0.58041161]
[1748246193265,0.77764607,109950.0,109940.0,0.61121161]
[1748246194260,0.77764607,109950.0,109940.0,0.4224585]
[1748246194664,0.47608607,109950.0,109940.0,0.4224585]
[1748246194920,0.47608607,109950.0,109940.0,0.3916585]
[1748246194921,0.68812456,109950.0,109940.0,0.3916585]
[1748246195125,0.7026293,109950.0,109940.0,0.3604585]
[1748246196854,0.7026293,109950.0,109940.0,0.3915585]
[1748246197824,0.74434226,109950.0,109940.0,0.3915585]
[1748246198840,0.3532367,109950.0,109940.0,0.8344585]
[1748246199050,0.62930023,109950.0,109940.0,0.8344585]
[1748246199250,0.62567209,109950.0,109940.0,0.8344585]
[1748246200741,0.48027209,109950.0,109940.0,0.8344585]
[1748246201443,0.43855913,109950.0,109940.0,0.8344585]
[1748246201661,0.42768253,109950.0,109940.0,0.8344585]
[1748246202277,0.42768253,109950.0,109940.0,0.78156039]
[1748246202487,0.51722809,109950.0,109940.0,0.75046039]
[1748246202698,0.51722809,109950.0,109940.0,5.32900939]
[1748246203564,0.51722809,109950.0,109940.0,5.36070939]
[1748246203772,0.52810469,109950.0,109940.0,5.36070939]
[1748246205056,0.52810469,109950.0,109940.0,5.32900939]
[1748246206361,0.56981765,109950.0,109940.0,5.32900939]
[1748246206743,0.56981765,109950.0,109940.0,5.30162645]
[1748246212284,0.71521765,109950.0,109940.0,5.30162645]
[1748246213785,0.72972239,109950.0,109940.0,5.30162645]
[1748246215637,0.71884579,109950.0,109940.0,5.30162645]
[1748246216813,0.7443169,109950.0,109940.0,5.30162645]
[1748246218552,0.8101169,109950.0,109940.0,5.30162645]
[1748246219011,0.86074653,109950.0,109940.0,5.30162645]
[1748246220440,0.79494653,109950.0,109940.0,5.30162645]
[1748246222967,0.79494653,109950.0,109940.0,5.27424303]
[1748246223923,0.64954653,109950.0,109940.0,5.27424303]
[1748246224138,0.79494653,109950.0,109940.0,5.27424303]
[1748246225852,0.79494653,109950.0,109940.0,5.25294482]
[1748246226318,0.21288524,109950.0,109940.0,5.67184882]
[1748246226535,0.18741413,109950.0,109940.0,5.68184882]
[1748246226755,0.18741413,109950.0,109940.0,6.45929438]
[1748246226976,0.18741413,109950.0,109940.0,6.48656938]
[1748246227407,0.19592236,109950.0,109940.0,6.48656938]
[1748246227616,0.13180598,109950.0,109940.0,6.34316938]
[1748246227830,0.13180598,109950.0,109940.0,6.48956938]
[1748246230867,0.12217609,109950.0,109940.0,6.48956938]
[1748246234024,0.12217609,109950.0,109940.0,6.48952938]
[1748246235294,0.18691658,109970.0,109960.0,0.59277845]
[1748246235500,0.20510252,109970.0,109960.0,5.1804215]
[1748246235705,0.18511867,109970.0,109960.0,5.18951538]
[1748246235915,0.18511867,109970.0,109960.0,5.18951546]
[1748246236342,0.19421197,109970.0,109960.0,5.17132745]
[1748246236578,0.19421189,109970.0,109960.0,5.17132745]
[1748246236751,0.20330527,109970.0,109960.0,5.17232753]
[1748246237057,0.20330527,109970.0,109960.0,5.17332753]
[1748246237294,0.20330527,109970.0,109960.0,5.13333332]
[1748246237295,0.37608041,109970.0,109960.0,5.13333332]
[1748246237707,0.03837263,109970.0,109960.0,5.14242753]
[1748246237924,0.19421263,109970.0,109960.0,5.14242753]
[1748246238127,0.18511925,109970.0,109960.0,5.14242753]
[1748246238332,0.19421263,109970.0,109960.0,5.15152166]
[1748246238546,0.18511925,109970.0,109960.0,5.15152166]
[1748246239348,0.19421263,109970.0,109960.0,5.15152166]
[1748246239548,0.02927858,109970.0,109960.0,5.19301571]
[1748246239785,0.0383718,109970.0,109960.0,5.19301571]
[1748246240117,0.0383718,109970.0,109960.0,5.60431571]
[1748246240817,0.0383718,109970.0,109960.0,5.59522166]
[1748246241058,0.04746518,109970.0,109960.0,5.56282166]
[1748246241276,0.0474651,109970.0,109960.0,5.53192166]
[1748246241680,0.03837246,109970.0,109960.0,5.53192166]
[1748246242522,0.02018553,109970.0,109960.0,5.53192166]
[1748246242705,0.02927858,109970.0,109960.0,5.60441554]
[1748246243607,0.02927858,109970.0,109960.0,5.59532166]
[1748246243837,0.0383718,109970.0,109960.0,5.58140967]
[1748246244455,0.0383718,109970.0,109960.0,5.54101562]
[1748246245280,0.02927858,109970.0,109960.0,5.5501095]
[1748246245500,0.0383718,109970.0,109960.0,5.54101562]
[1748246245701,0.02927858,109970.0,109960.0,5.5501095]
[1748246245913,0.01109264,109970.0,109960.0,5.63230313]
[1748246246116,0.002,109970.0,109960.0,6.32020313]
[1748246246333,0.01109264,109970.0,109960.0,6.32020313]
[1748246246700,0.02018545,109970.0,109960.0,6.32020313]
[1748246246903,0.01109264,109970.0,109960.0,6.32020313]
[1748246247104,0.01109264,109970.0,109960.0,6.34747413]
[1748246247649,0.01047906,109970.0,109960.0,6.34747413]
[1748246249249,0.01957178,109970.0,109960.0,6.34747413]
[1748246249456,0.01957178,109970.0,109960.0,6.3261838]
[1748246250188,0.01957187,109970.0,109960.0,6.3261838]
[1748246250374,0.01957178,109970.0,109960.0,6.3261838]
[1748246250586,0.02866467,109970.0,109960.0,6.3261838]